bitfinex/quotes_BTCUSD_20230115
["timestamp","ask_amount","ask_price","bid_price","bid_amount"]
[1673796874573,0.02325398,20856.0,20853.0,0.85811928]
[1673796875339,0.02325398,20856.0,20853.0,0.8560564]
[1673796875633,0.02594391,20855.0,20853.0,0.8560564]
[1673796875887,0.02594391,20855.0,20853.0,0.8570564]
[1673796876118,0.02594391,20855.0,20853.0,0.8560564]
[1673796876370,0.3,20855.0,20853.0,0.8930564]
[1673796876621,0.3,20855.0,20854.0,0.31410386]
[1673796877384,0.02782691,20856.0,20854.0,0.31410386]
[1673796877886,0.02782691,20856.0,20854.0,0.35110386]
[1673796878912,0.02782691,20856.0,20854.0,0.31410386]
[1673796879168,0.02782691,20856.0,20854.0,0.31510386]
[1673796880193,0.3,20857.0,20854.0,0.31510386]
[1673796880451,0.32201143,20857.0,20854.0,0.31510386]
[1673796880699,0.10094019,20856.0,20852.0,0.35569073]
[1673796880959,0.110528,20855.0,20852.0,0.35569073]
[1673796881216,1.259021,20855.0,20852.0,0.35569073]
[1673796881517,1.259021,20855.0,20849.0,0.703956]
[1673796881769,0.11449857,20854.0,20850.0,0.34304874]
[1673796882034,0.479551,20853.0,20850.0,0.34304874]
[1673796882297,0.3,20852.0,20850.0,0.34304874]
[1673796883068,0.3,20852.0,20850.0,0.43604874]
[1673796883340,0.3,20852.0,20850.0,0.43704874]
[1673796883619,0.3,20852.0,20850.0,0.34304874]
[1673796883840,0.3,20852.0,20850.0,0.34904874]
[1673796884637,0.32412851,20852.0,20850.0,0.34904874]
[1673796886453,0.33412851,20852.0,20850.0,0.34904874]
[1673796889545,0.03412851,20852.0,20850.0,0.34904874]
[1673796892370,0.01,20852.0,20850.0,0.34904874]
[1673796893416,0.01,20852.0,20851.0,0.28915093]
[1673796895679,0.01,20852.0,20851.0,0.32615093]
[1673796896189,0.01,20852.0,20851.0,0.29015093]
[1673796896464,0.01,20852.0,20851.0,0.28915093]
[1673796896738,0.01,20852.0,20851.0,0.32615093]
[1673796897776,0.01,20852.0,20851.0,0.2890573]
[1673796898022,0.01,20852.0,20851.0,0.2900573]
[1673796898274,0.01,20852.0,20851.0,0.6109203]
[1673796898528,0.32361587,20854.0,20851.0,0.7049203]
[1673796898853,0.32361587,20854.0,20851.0,0.3840573]
[1673796899620,0.32361587,20854.0,20851.0,0.2890573]
[1673796899870,0.32361587,20854.0,20852.0,0.37949597]
[1673796900641,0.32361587,20854.0,20849.0,0.699037]
[1673796900918,0.32361587,20854.0,20851.0,0.001]
[1673796901195,0.32361587,20854.0,20850.0,0.39542615]
[1673796901462,0.32361587,20854.0,20852.0,0.006]
[1673796902217,0.32361587,20854.0,20851.0,0.33865874]
[1673796903027,0.32361587,20854.0,20852.0,0.006]
[1673796903758,0.32361587,20854.0,20851.0,0.33865874]
[1673796904016,0.32361587,20854.0,20851.0,0.33965874]
[1673796904276,0.32361587,20854.0,20852.0,0.40101051]
[1673796904540,0.32361587,20854.0,20852.0,0.40701051]
[1673796904786,0.32361587,20854.0,20852.0,0.40101051]
[1673796905776,0.32361587,20854.0,20852.0,0.40701051]
[1673796907022,0.3,20854.0,20852.0,0.40701051]
[1673796907786,0.3,20854.0,20853.0,0.28784886]
[1673796908084,0.76641395,20856.0,20853.0,0.19072595]
[1673796908085,0.35864243,20856.0,20853.0,0.19072595]
[1673796908319,0.80029737,20858.0,20853.0,0.19072595]
[1673796908320,0.58511191,20858.0,20854.0,0.48072594]
[1673796908578,0.44165494,20858.0,20855.0,0.99108495]
[1673796908852,0.44165494,20858.0,20856.0,0.280358]
[1673796909100,0.41720928,20858.0,20857.0,0.32083]
[1673796909393,0.50209941,20861.0,20857.0,1.06821095]
[1673796909394,0.14345697,20861.0,20857.0,1.06821095]
[1673796909618,0.14345697,20861.0,20859.0,0.0772]
[1673796909619,0.16425398,20861.0,20859.0,0.0772]
[1673796909856,0.50209941,20862.0,20860.0,0.320778]
[1673796909857,0.14345697,20862.0,20860.0,0.320778]
[1673796910104,0.14345697,20862.0,20861.0,0.202805]
[1673796910380,0.14345697,20862.0,20860.0,0.56233776]
[1673796910381,0.14345697,20862.0,20860.0,0.37161181]
[1673796910847,0.16600093,20863.0,20860.0,0.37161181]
[1673796911601,0.46600093,20863.0,20860.0,0.37161181]
[1673796911851,0.46600093,20863.0,20860.0,0.85099081]
[1673796912099,0.32254396,20863.0,20860.0,0.85099081]
[1673796912341,0.32254396,20863.0,20860.0,1.33037681]
[1673796912584,0.3,20863.0,20860.0,1.33037681]
[1673796912846,0.3,20863.0,20861.0,0.3627982]
[1673796913098,0.3,20863.0,20861.0,0.8421602]
[1673796914857,1.02591736,20864.0,20862.0,0.320863]
[1673796914858,1.0,20864.0,20862.0,0.320863]
[1673796915115,1.0,20864.0,20863.0,1.07356085]
[1673796915365,1.0,20864.0,20863.0,0.87089685]
[1673796916103,1.0,20864.0,20863.0,0.87889685]
[1673796916356,1.0,20864.0,20863.0,1.35821385]
[1673796916846,1.0,20864.0,20863.0,1.75687685]
[1673796917337,1.0,20864.0,20863.0,1.74887685]
[1673796917597,1.0,20864.0,20863.0,1.75587685]
[1673796917849,1.0,20864.0,20863.0,1.74887685]
[1673796918106,1.005,20864.0,20863.0,1.78387685]
[1673796919330,1.0,20864.0,20863.0,1.74887685]
[1673796920080,1.006,20864.0,20863.0,1.78187685]
[1673796921581,1.0,20864.0,20863.0,1.74887685]
[1673796921833,1.003,20864.0,20863.0,1.80687685]
[1673796922831,1.33114423,20864.0,20863.0,0.378863]
[1673796923085,1.33114423,20864.0,20863.0,0.058]
[1673796924592,1.32814423,20864.0,20860.0,0.55296195]
[1673796924842,1.32814423,20864.0,20863.0,0.005]
[1673796924843,1.36614423,20864.0,20863.0,0.005]
[1673796925096,0.36614423,20864.0,20863.0,0.005]
[1673796925842,0.32814423,20864.0,20861.0,0.38095128]
[1673796926102,0.3,20863.0,20861.0,0.38095128]
[1673796927105,0.3,20863.0,20860.0,0.22214]
[1673796927348,0.3,20863.0,20860.0,0.53700989]
[1673796927842,0.303,20863.0,20861.0,0.37973499]
[1673796928347,0.013,20863.0,20862.0,0.19072595]
[1673796928614,1.1552,20866.0,20862.0,1.31117704]
[1673796928917,0.95885183,20867.0,20863.0,0.19072595]
[1673796929220,0.95885183,20867.0,20864.0,0.67001495]
[1673796929474,0.02835183,20867.0,20864.0,0.6699476]
[1673796929726,0.02835183,20867.0,20864.0,0.958583]
[1673796930707,0.02835183,20867.0,20864.0,0.479289]
[1673796930979,0.03135183,20867.0,20864.0,0.479289]
[1673796931219,0.02835183,20867.0,20864.0,0.958583]
[1673796931519,0.02835183,20867.0,20864.0,0.480289]
[1673796931520,0.03835183,20867.0,20864.0,0.480289]
[1673796931766,1.6404157,20867.0,20864.0,0.001]
[1673796932055,0.1558,20865.0,20864.0,0.001]
[1673796932550,1.22487,20865.0,20864.0,0.001]
[1673796932806,1.52487,20865.0,20864.0,0.001]
[1673796933584,1.52487,20865.0,20860.0,0.32715559]
[1673796933838,1.383542,20865.0,20864.0,0.004]
[1673796934080,1.42507,20865.0,20859.0,0.61670075]
[1673796934329,0.078,20862.0,20859.0,0.8074267]
[1673796934677,0.078,20862.0,20859.0,0.39244075]
[1673796934836,0.078,20862.0,20860.0,0.004]
[1673796934837,0.378,20862.0,20860.0,0.004]
[1673796935108,0.378,20862.0,20859.0,0.39244075]
[1673796935353,0.378,20862.0,20859.0,0.39644075]
[1673796936373,0.02554256,20861.0,20859.0,0.39644075]
[1673796936627,0.02554256,20861.0,20859.0,0.008]
[1673796936914,0.088128,20860.0,20859.0,0.008]
[1673796937127,0.3,20860.0,20859.0,0.40650173]
[1673796937370,0.3,20860.0,20859.0,0.39850173]
[1673796938429,0.32554256,20861.0,20859.0,0.39850173]
[1673796938658,0.32554256,20861.0,20859.0,0.39950173]
[1673796938659,0.005,20860.0,20859.0,0.39950173]
[1673796939161,0.32554256,20861.0,20859.0,0.39950173]
[1673796939656,0.02554256,20861.0,20859.0,0.39850173]
[1673796939907,0.078,20862.0,20859.0,0.483402]
[1673796939908,0.043,20860.0,20859.0,0.483402]
[1673796940152,0.3,20862.0,20859.0,0.958811]
[1673796940407,0.043,20861.0,20860.0,0.28652512]
[1673796940659,0.043,20861.0,20860.0,0.76591112]
[1673796941153,0.02392972,20863.0,20860.0,0.76591112]
[1673796941403,0.042,20861.0,20860.0,0.76591112]
[1673796941652,0.3776,20864.0,20860.0,0.76591112]
[1673796941911,0.4018171,20864.0,20860.0,0.95663707]
[1673796942911,0.02629514,20863.0,20860.0,0.28652512]
[1673796943169,0.02629514,20863.0,20860.0,0.29052512]
[1673796943937,0.02629514,20863.0,20860.0,0.28652512]
[1673796944185,0.02629514,20863.0,20860.0,0.29052512]
[1673796944186,0.06829514,20863.0,20860.0,0.29052512]
[1673796944706,0.06829514,20863.0,20860.0,0.004]
[1673796944707,0.0778,20862.0,20860.0,0.004]
[1673796944963,0.320088,20861.0,20860.0,0.004]
[1673796945205,0.620088,20861.0,20860.0,0.004]
[1673796945451,0.60956,20861.0,20859.0,0.29612673]
[1673796945713,0.3,20860.0,20859.0,0.29612673]
[1673796946452,0.557011,20864.0,20861.0,0.30971683]
[1673796946693,0.0777,20864.0,20862.0,0.19072595]
[1673796947203,1.6816746,20865.0,20862.0,0.19072595]
[1673796947455,1.2023846,20865.0,20862.0,0.19072595]
[1673796947961,0.042,20864.0,20862.0,0.004]
[1673796948211,0.07028918,20864.0,20862.0,0.004]
[1673796948459,0.37028918,20864.0,20862.0,0.004]
[1673796948705,0.3,20863.0,20862.0,0.004]
[1673796948957,0.3,20863.0,20861.0,0.30971683]
[1673796948958,0.02304831,20863.0,20861.0,0.30971683]
[1673796949202,0.25460831,20863.0,20862.0,0.004]
[1673796949445,0.25460831,20863.0,20861.0,0.30971683]
[1673796949446,0.53156,20863.0,20861.0,0.30971683]
[1673796949695,0.53156,20863.0,20862.0,0.004]
[1673796949952,0.53156,20863.0,20861.0,0.30971683]
[1673796950200,0.3,20862.0,20861.0,0.30971683]
[1673796951208,0.3,20863.0,20861.0,0.30971683]
[1673796951963,0.004,20862.0,20861.0,0.35871683]
[1673796952202,0.3,20863.0,20861.0,0.30971683]
[1673796952446,0.302,20863.0,20861.0,0.30971683]
[1673796952697,0.32270772,20863.0,20861.0,0.30971683]
[1673796952948,0.40070772,20863.0,20861.0,0.30971683]
[1673796953192,0.39870772,20863.0,20861.0,0.30971683]
[1673796953441,0.58416469,20863.0,20861.0,0.31371683]
[1673796953696,0.58416469,20863.0,20857.0,0.14283034]
[1673796953697,0.078,20862.0,20857.0,0.14283034]
[1673796953960,0.84866095,20861.0,20858.0,0.40061347]
[1673796954218,0.078,20859.0,20858.0,0.40061347]
[1673796954472,0.078,20859.0,20855.0,0.62232034]
[1673796954733,0.078,20858.0,20856.0,0.38509013]
[1673796955505,0.378,20858.0,20856.0,0.38509013]
[1673796956011,0.42,20858.0,20856.0,0.38909013]
[1673796956264,0.378,20858.0,20856.0,0.38509013]
[1673796956522,0.42,20858.0,20856.0,0.38909013]
[1673796957031,0.42,20858.0,20856.0,0.004]
[1673796957528,0.44109308,20858.0,20856.0,0.004]
[1673796958314,0.42,20858.0,20856.0,0.30887841]
[1673796958591,0.042,20858.0,20857.0,0.35364057]
[1673796959605,0.3,20859.0,20857.0,0.35364057]
[1673796959875,1.00084458,20862.0,20857.0,0.35364057]
[1673796960074,0.79802098,20861.0,20858.0,0.19072595]
[1673796960315,0.79802098,20861.0,20857.0,0.35364057]
[1673796960316,0.49802098,20861.0,20857.0,0.35364057]
[1673796960813,0.49802098,20861.0,20857.0,0.35764057]
[1673796960814,0.042,20858.0,20857.0,0.35764057]
[1673796961063,0.49802098,20861.0,20857.0,0.35364057]
[1673796961309,0.54002098,20861.0,20858.0,0.004]
[1673796961550,0.49802098,20861.0,20857.0,0.54436652]
[1673796961801,0.3,20860.0,20857.0,0.35764057]
[1673796962553,0.3,20860.0,20858.0,0.37076603]
[1673796962799,0.342,20860.0,20858.0,0.37076603]
[1673796963798,0.39881929,20861.0,20858.0,0.37076603]
[1673796964046,0.042,20860.0,20858.0,0.37476603]
[1673796964795,0.39881929,20861.0,20858.0,0.37076603]
[1673796965055,0.44081929,20861.0,20858.0,0.37476603]
[1673796965330,0.44081929,20861.0,20858.0,0.37076603]
[1673796965580,0.042,20860.0,20858.0,0.37476603]
[1673796965836,0.378,20861.0,20858.0,0.37076603]
[1673796966080,0.378,20861.0,20858.0,0.37476603]
[1673796966081,0.42,20861.0,20858.0,0.37476603]
[1673796966829,0.342,20861.0,20858.0,0.37476603]
[1673796967858,0.3,20861.0,20859.0,0.36297423]
[1673796968103,0.342,20861.0,20859.0,0.36297423]
[1673796968857,0.3,20861.0,20859.0,0.36297423]
[1673796969387,0.342,20861.0,20859.0,0.36697423]
[1673796969909,0.042,20861.0,20859.0,0.55770018]
[1673796970144,0.042,20861.0,20860.0,0.34077167]
[1673796970356,0.44350358,20862.0,20860.0,1.14102067]
[1673796970643,0.042,20861.0,20860.0,0.82015767]
[1673796971150,0.042,20861.0,20860.0,1.29954367]
[1673796971360,0.44350358,20862.0,20860.0,1.29954367]
[1673796971617,0.48550358,20862.0,20860.0,1.30354367]
[1673796971873,0.44350358,20862.0,20860.0,1.29954367]
[1673796972088,0.042,20861.0,20860.0,1.30354367]
[1673796973173,0.14350358,20862.0,20860.0,1.279635]
[1673796973418,0.18550358,20862.0,20861.0,0.202719]
[1673796973675,0.14350358,20862.0,20861.0,0.479363]
[1673796974185,0.14350358,20862.0,20861.0,0.958726]
[1673796974434,0.18650358,20862.0,20861.0,1.22745195]
[1673796974715,0.14350358,20862.0,20861.0,1.288089]
[1673796974940,0.18550358,20862.0,20861.0,1.283589]
[1673796975236,0.02791671,20865.0,20862.0,0.10150357]
[1673796975478,0.02791671,20865.0,20863.0,0.52083722]
[1673796975729,0.44350358,20866.0,20864.0,0.320811]
[1673796975981,0.44350358,20866.0,20864.0,0.19072595]
[1673796975982,0.14350358,20866.0,20864.0,0.19072595]
[1673796976252,0.14350358,20866.0,20863.0,1.27676922]
[1673796976479,0.17075514,20866.0,20863.0,1.27676922]
[1673796976725,0.17075514,20866.0,20863.0,0.81645222]
[1673796976996,0.17075514,20866.0,20863.0,0.79745222]
[1673796977259,0.47475514,20866.0,20864.0,0.003]
[1673796977534,0.47475514,20866.0,20863.0,0.79745222]
[1673796977535,0.47075514,20866.0,20863.0,0.79745222]
[1673796977750,0.47475514,20866.0,20863.0,0.80045222]
[1673796978014,0.44350358,20866.0,20863.0,0.79745222]
[1673796978257,0.3,20866.0,20864.0,0.63703706]
[1673796978524,0.3,20866.0,20864.0,0.31617406]
[1673796979797,0.004,20866.0,20865.0,0.01927706]
[1673796980522,0.32794012,20867.0,20865.0,0.01927706]
[1673796980765,0.014528,20866.0,20865.0,0.3295584]
[1673796981015,0.004,20866.0,20865.0,0.3295584]
[1673796982265,0.304,20866.0,20865.0,0.3295584]
[1673796982549,0.004,20866.0,20865.0,0.3295584]
[1673796982782,0.304,20866.0,20865.0,0.3295584]
[1673796984045,0.004,20866.0,20865.0,0.3295584]
[1673796985117,0.34203116,20866.0,20865.0,0.02627706]
[1673796985337,0.65255916,20866.0,20865.0,0.02627706]
[1673796985838,2.56967972,20866.0,20865.0,0.02627706]
[1673796986169,2.68101092,20866.0,20865.0,0.01927706]
[1673796986399,2.58922357,20866.0,20865.0,0.02627706]
[1673796986659,2.41842812,20866.0,20865.0,0.007]
[1673796986899,2.72843787,20866.0,20865.0,0.007]
[1673796987144,2.7050173,20866.0,20865.0,0.007]
[1673796987640,2.44514856,20866.0,20865.0,0.007]
[1673796988144,2.73177993,20866.0,20865.0,0.007]
[1673796988387,2.73178149,20866.0,20865.0,0.007]
[1673796989654,2.37313906,20866.0,20865.0,0.007]
[1673796989951,2.28810716,20866.0,20865.0,0.007]
[1673796990173,0.74179857,20866.0,20865.0,0.19772595]
[1673796990433,0.10872044,20866.0,20865.0,0.007]
[1673796990690,0.004,20866.0,20865.0,0.62911946]
[1673796991569,0.004,20866.0,20865.0,0.94998246]
[1673796992020,0.16473076,20868.0,20865.0,0.94298246]
[1673796992271,0.16473076,20868.0,20865.0,0.64111946]
[1673796992541,0.02142863,20868.0,20865.0,0.64111946]
[1673796993093,0.02142863,20868.0,20865.0,0.62211946]
[1673796993345,0.32542863,20868.0,20866.0,0.32562154]
[1673796993859,0.304,20868.0,20866.0,0.32562154]
[1673796994852,0.44730213,20868.0,20866.0,0.32562154]
[1673796995585,0.44330213,20868.0,20866.0,0.32562154]
[1673796995901,0.44730213,20868.0,20866.0,0.33262154]
[1673796996166,0.004,20868.0,20867.0,0.30345377]
[1673796996428,0.004,20868.0,20867.0,0.62431677]
[1673796996698,0.004,20868.0,20867.0,0.30345377]
[1673796997218,0.16825338,20869.0,20867.0,0.30345377]
[1673796997761,0.02495125,20869.0,20867.0,0.30345377]
[1673796998161,9.749e-05,20867.0,20865.0,0.7827406]
[1673796998415,0.02646567,20867.0,20865.0,0.3034916]
[1673796998662,0.32646567,20867.0,20865.0,0.3034916]
[1673796998906,0.3,20866.0,20865.0,0.3034916]
[1673796999185,0.3,20866.0,20865.0,0.3224916]
[1673796999436,0.3,20866.0,20865.0,0.3034916]
[1673796999695,0.3,20866.0,20865.0,0.3104916]
[1673796999943,0.3847359,20867.0,20865.0,0.3034916]
[1673797000218,0.304,20866.0,20865.0,0.3104916]
[1673797000480,0.004,20866.0,20865.0,0.3104916]
[1673797001263,0.44339962,20867.0,20865.0,0.3034916]
[1673797001541,0.44739962,20867.0,20865.0,0.3104916]
[1673797001781,0.44339962,20867.0,20865.0,0.3034916]
[1673797002037,0.004,20866.0,20865.0,0.3104916]
[1673797002513,0.44739962,20867.0,20865.0,0.3104916]
[1673797002801,0.47269391,20867.0,20865.0,0.3104916]
[1673797003050,0.68366201,20867.0,20865.0,0.3034916]
[1673797003300,0.68366201,20867.0,20865.0,0.3104916]
[1673797003301,0.004,20866.0,20865.0,0.3104916]
[1673797003819,0.004,20866.0,20865.0,0.31038937]
[1673797004076,0.44339962,20867.0,20865.0,0.30338937]
[1673797004341,0.30409749,20867.0,20865.0,0.31038937]
[1673797004552,0.30009749,20867.0,20865.0,0.30338937]
[1673797004840,0.004,20866.0,20865.0,0.31038937]
[1673797005101,0.30009749,20867.0,20865.0,0.30338937]
[1673797005351,0.00409749,20867.0,20865.0,0.31038937]
[1673797005607,0.00409749,20867.0,20865.0,0.30338937]
[1673797005862,0.004,20866.0,20865.0,0.31038937]
[1673797006115,9.749e-05,20867.0,20866.0,0.29684871]
[1673797006367,9.749e-05,20867.0,20866.0,1.09695971]
[1673797007134,9.749e-05,20867.0,20866.0,0.77609671]
[1673797007382,0.21054749,20867.0,20863.0,0.479295]
[1673797007639,0.3,20866.0,20865.0,0.38481465]
[1673797007903,0.30009749,20867.0,20865.0,0.38481465]
[1673797008670,0.30009749,20867.0,20866.0,0.002]
[1673797008921,0.30009749,20867.0,20865.0,0.38481465]
[1673797009170,0.44339962,20867.0,20865.0,0.39181465]
[1673797009968,0.30009749,20867.0,20865.0,0.39181465]
[1673797011222,0.30009749,20867.0,20866.0,0.30213891]
[1673797011773,9.749e-05,20867.0,20866.0,0.30213891]
[1673797012046,2.63e-06,20867.0,20866.0,0.30213891]
[1673797013812,2.63e-06,20867.0,20866.0,0.30913891]
[1673797015033,2.63e-06,20867.0,20866.0,0.30213891]
[1673797015282,2.63e-06,20867.0,20866.0,0.30413891]
[1673797015501,2.63e-06,20867.0,20866.0,0.78338691]
[1673797015786,2.63e-06,20867.0,20866.0,1.10424991]
[1673797016034,2.63e-06,20867.0,20866.0,0.78338691]
[1673797016498,2.63e-06,20867.0,20866.0,0.78138691]
[1673797016740,2.63e-06,20867.0,20866.0,0.821111]
[1673797016994,2.63e-06,20867.0,20866.0,0.800111]
[1673797017248,2.63e-06,20867.0,20866.0,1.281359]
[1673797019304,2.63e-06,20867.0,20866.0,1.279359]
[1673797019561,2.63e-06,20867.0,20866.0,1.300359]
[1673797020336,2.63e-06,20867.0,20866.0,1.281359]
[1673797022414,2.63e-06,20867.0,20866.0,0.960496]
[1673797023110,2.63e-06,20867.0,20866.0,0.002]
[1673797024120,2.63e-06,20867.0,20863.0,0.479308]
[1673797024879,0.23528022,20867.0,20866.0,0.007]
[1673797025143,0.53528022,20867.0,20866.0,0.007]
[1673797025657,0.53528022,20867.0,20863.0,0.479308]
[1673797025914,0.3,20866.0,20863.0,0.572308]
[1673797026162,0.3,20866.0,20863.0,0.479308]
[1673797027154,0.32483022,20867.0,20863.0,0.958625]
[1673797027429,0.32483022,20867.0,20864.0,0.31684779]
[1673797027669,2.63e-06,20867.0,20864.0,0.31684779]
[1673797027882,0.3,20866.0,20864.0,0.31684779]
[1673797028105,0.29872382,20866.0,20864.0,0.31684779]
[1673797028827,2.63e-06,20867.0,20864.0,0.31684779]
[1673797029583,0.44330476,20867.0,20864.0,0.31684779]
[1673797030109,0.44330476,20867.0,20864.0,0.33784779]
[1673797030376,0.44330476,20867.0,20864.0,1.29642879]
[1673797030633,0.30000263,20867.0,20864.0,1.29642879]
[1673797030887,0.30000263,20867.0,20864.0,1.27542879]
[1673797031141,0.30000263,20867.0,20864.0,1.28242879]
[1673797031386,2.63e-06,20867.0,20864.0,1.27542879]
[1673797031901,2.63e-06,20867.0,20864.0,1.41825913]
[1673797032152,2.63e-06,20867.0,20865.0,0.0085]
[1673797032404,2.63e-06,20867.0,20866.0,1.279359]
[1673797032894,2.63e-06,20867.0,20866.0,0.958496]
[1673797033387,2.63e-06,20867.0,20866.0,1.279359]
[1673797033636,2.63e-06,20867.0,20866.0,1.29704217]
[1673797033885,2.63e-06,20867.0,20866.0,1.31804217]
[1673797034884,2.63e-06,20867.0,20866.0,0.35954617]
[1673797035137,0.30000263,20867.0,20866.0,0.03868317]
[1673797037091,0.30000263,20867.0,20866.0,0.01768317]
[1673797037352,0.30000263,20867.0,20866.0,0.02468317]
[1673797038110,2.63e-06,20867.0,20866.0,0.02468317]
[1673797038356,2.63e-06,20867.0,20866.0,0.39889572]
[1673797038357,0.30000263,20867.0,20866.0,0.39889572]
[1673797038604,2.63e-06,20867.0,20866.0,0.39889572]
[1673797038852,2.63e-06,20867.0,20866.0,0.87814372]
[1673797039099,2.63e-06,20867.0,20866.0,1.19900672]
[1673797039584,2.63e-06,20867.0,20866.0,1.19200672]
[1673797039835,2.63e-06,20867.0,20866.0,1.21300672]
[1673797040338,2.63e-06,20867.0,20866.0,1.69225472]
[1673797040578,2.63e-06,20867.0,20866.0,1.31804217]
[1673797042839,2.63e-06,20867.0,20866.0,0.99717917]
[1673797044084,2.63e-06,20867.0,20866.0,1.18790512]
[1673797044322,2.63e-06,20867.0,20866.0,2.94080797]
[1673797044578,2.63e-06,20867.0,20866.0,4.04781694]
[1673797045077,2.63e-06,20867.0,20866.0,3.66974931]
[1673797045542,2.63e-06,20867.0,20866.0,3.97556643]
[1673797045794,2.63e-06,20867.0,20866.0,3.88356643]
[1673797046061,2.63e-06,20867.0,20866.0,3.64048108]
[1673797047112,0.32502015,20872.0,20866.0,3.42666396]
[1673797047345,0.32502015,20872.0,20867.0,0.83599169]
[1673797047596,0.14330213,20873.0,20868.0,2.09161085]
[1673797047853,0.38042997,20874.0,20869.0,0.51158895]
[1673797048099,0.38042997,20874.0,20870.0,1.35148195]
[1673797048351,0.16546187,20874.0,20871.0,0.32083]
[1673797048603,0.16546187,20874.0,20871.0,1.14888158]
[1673797048604,0.14330213,20874.0,20871.0,1.14888158]
[1673797048871,0.59274883,20873.0,20869.0,0.31456171]
[1673797049116,0.3,20872.0,20869.0,0.31456171]
[1673797049371,0.44330213,20872.0,20869.0,0.31456171]
[1673797049621,0.52130213,20872.0,20869.0,0.31456171]
[1673797049868,0.52130213,20872.0,20871.0,0.007]
[1673797050595,0.53183013,20872.0,20869.0,0.31456171]
[1673797050845,0.52130213,20872.0,20869.0,0.40756171]
[1673797051093,0.02654976,20871.0,20869.0,0.31456171]
[1673797051875,0.02654976,20871.0,20869.0,0.40756171]
[1673797052119,0.02654976,20871.0,20869.0,0.31456171]
[1673797052360,0.23699976,20871.0,20870.0,0.00017021]
[1673797052611,0.53699976,20871.0,20870.0,0.00017021]
[1673797054643,0.53699976,20871.0,20870.0,0.00817021]
[1673797054893,0.32654976,20871.0,20870.0,0.00817021]
[1673797055156,0.83735423,20874.0,20870.0,0.21882021]
[1673797055405,0.02324857,20873.0,20871.0,0.19072595]
[1673797055665,0.02324857,20873.0,20870.0,0.79170201]
[1673797055917,0.02390466,20872.0,20870.0,0.008]
[1673797056172,0.220978,20871.0,20870.0,0.008]
[1673797056422,0.51045,20871.0,20868.0,0.82117275]
[1673797056691,0.3,20870.0,20869.0,0.28885131]
[1673797057684,0.46720679,20872.0,20869.0,0.29585131]
[1673797057944,0.32390466,20872.0,20869.0,0.29585131]
[1673797058423,0.32390466,20872.0,20869.0,0.28885131]
[1673797059478,0.32390466,20872.0,20869.0,0.29685131]
[1673797060051,0.1767259,20871.0,20869.0,0.008]
[1673797060295,1.17911413,20870.0,20869.0,0.008]
[1673797060581,1.70471926,20870.0,20869.0,0.008]
[1673797061396,1.70471926,20870.0,20866.0,0.01768317]
[1673797061606,0.3,20869.0,20866.0,0.01768317]
[1673797061886,0.010528,20868.0,20866.0,0.01768317]
[1673797062147,0.02402463,20871.0,20867.0,0.40062982]
[1673797062442,0.02402463,20871.0,20869.0,0.007]
[1673797062715,0.02402463,20871.0,20869.0,0.19072595]
[1673797062975,0.02402463,20871.0,20868.0,0.479201]
[1673797063225,0.02402463,20871.0,20868.0,0.958403]
[1673797064194,0.02402463,20871.0,20868.0,1.051403]
[1673797064463,0.14341116,20873.0,20868.0,1.051403]
[1673797064722,0.44341116,20873.0,20868.0,1.24212895]
[1673797064981,0.46495595,20873.0,20869.0,0.39350905]
[1673797065244,0.67992405,20873.0,20869.0,0.584235]
[1673797065490,0.67992405,20873.0,20869.0,1.06341]
[1673797065992,0.46495595,20873.0,20869.0,1.06341]
[1673797066274,0.46495595,20873.0,20869.0,1.07041]
[1673797066275,0.67992405,20873.0,20869.0,1.07041]
[1673797066505,0.67992405,20873.0,20869.0,0.87968405]
[1673797066763,0.38457857,20874.0,20870.0,0.38020164]
[1673797067010,0.38457857,20874.0,20870.0,0.56242759]
[1673797067265,0.02914209,20873.0,20870.0,1.52072459]
[1673797067534,0.02914209,20873.0,20870.0,1.32999864]
[1673797067852,0.02914209,20873.0,20871.0,0.320863]
[1673797068054,0.02914209,20873.0,20872.0,0.20241]
[1673797068306,0.02914209,20873.0,20871.0,0.479133]
[1673797069011,0.02914209,20873.0,20871.0,0.486133]
[1673797069263,0.14341116,20874.0,20871.0,0.486133]
[1673797069514,0.14341116,20874.0,20871.0,0.479133]
[1673797069771,0.35837926,20875.0,20871.0,0.479133]
[1673797070028,0.38262655,20875.0,20872.0,0.39663394]
[1673797070285,0.3,20874.0,20872.0,0.39647891]
[1673797070769,0.16765845,20875.0,20872.0,0.35647891]
[1673797071018,0.32424729,20875.0,20872.0,0.35647891]
[1673797071256,0.46765845,20875.0,20872.0,0.35647891]
[1673797071506,0.46765845,20875.0,20872.0,0.36447891]
[1673797071772,0.46765845,20875.0,20872.0,0.35647891]
[1673797072275,0.32424729,20875.0,20872.0,0.84358891]
[1673797072781,0.32424729,20875.0,20872.0,0.83558891]
[1673797073032,0.46765845,20875.0,20872.0,0.83558891]
[1673797073291,0.05572161,20874.0,20872.0,0.35647891]
[1673797073549,0.49913277,20874.0,20870.0,0.479134]
[1673797073819,0.21045,20873.0,20872.0,0.008]
[1673797074140,0.22141116,20873.0,20872.0,0.19072595]
[1673797074338,0.15538267,20876.0,20872.0,1.05556092]
[1673797074607,0.15538267,20876.0,20873.0,0.19072595]
[1673797074860,0.14538267,20876.0,20873.0,0.47469066]
[1673797075108,0.00197151,20876.0,20873.0,0.76304671]
[1673797075620,0.30197151,20876.0,20873.0,0.76304671]
[1673797075882,0.00197151,20876.0,20873.0,1.24213371]
[1673797076141,0.30197151,20876.0,20873.0,1.26313371]
[1673797076914,0.30197151,20876.0,20873.0,1.24213371]
[1673797077167,0.30197151,20876.0,20873.0,1.24413371]
[1673797077384,0.00197151,20876.0,20874.0,0.33386025]
[1673797077648,0.00197151,20876.0,20874.0,0.81291825]
[1673797078915,0.00197151,20876.0,20874.0,0.81991825]
[1673797079698,0.00197151,20876.0,20875.0,0.32021245]
[1673797079955,0.00197151,20876.0,20875.0,1.28679445]
[1673797080208,0.00197151,20876.0,20875.0,1.60765745]
[1673797081226,0.00197151,20876.0,20875.0,1.62865745]
[1673797082225,0.00197151,20876.0,20875.0,1.14111645]
[1673797082484,0.21242151,20876.0,20875.0,0.34121245]
[1673797082755,0.51242151,20876.0,20875.0,0.34121245]
[1673797083059,0.30197151,20876.0,20875.0,0.34121245]
[1673797083301,0.00197151,20876.0,20875.0,0.32021245]
[1673797083804,0.00197151,20876.0,20875.0,0.32721245]
[1673797085610,0.00197151,20876.0,20875.0,0.64107545]